bitfinex-derivatives/quotes_BTCF0:USTF0_20241010
["timestamp","ask_amount","ask_price","bid_price","bid_amount"]
[1728543278971,0.081866,61139.0,61138.0,0.06508194]
[1728543279165,0.081868,61138.0,61136.0,0.08187]
[1728543279365,0.191868,61138.0,61136.0,0.08187]
[1728543280669,0.198868,61138.0,61136.0,0.08287]
[1728543282169,0.205868,61138.0,61136.0,0.08387]
[1728543284378,0.205868,61138.0,61136.0,0.10353944]
[1728543286777,0.205868,61138.0,61136.0,0.18497154]
[1728543287676,0.205868,61138.0,61136.0,0.10310154]
[1728543287878,0.205868,61138.0,61137.0,0.081869]
[1728543289780,0.198868,61138.0,61137.0,0.081869]
[1728543289980,0.205868,61138.0,61137.0,0.082869]
[1728543290776,0.206868,61138.0,61137.0,0.083869]
[1728543293277,0.206868,61138.0,61137.0,0.1653011]
[1728543293476,0.206868,61138.0,61137.0,0.083869]
[1728543299280,0.206868,61138.0,61137.0,0.17244297]
[1728543299583,0.206868,61138.0,61136.0,0.08146848]
[1728543299584,0.567668,61138.0,61136.0,0.08146848]
[1728543299772,0.081872,61135.0,61130.0,0.10911852]
[1728543299977,0.081874,61133.0,61132.0,0.081875]
[1728543300174,0.321874,61133.0,61132.0,0.17106716]
[1728543300370,0.321874,61133.0,61132.0,0.08919216]
[1728543300589,0.321874,61133.0,61127.0,0.3722]
[1728543300590,0.081878,61130.0,61129.0,0.081879]
[1728543300880,0.321878,61130.0,61129.0,0.17062184]
[1728543301185,0.321878,61130.0,61129.0,0.081879]
[1728543302379,0.321878,61130.0,61129.0,0.14705184]
[1728543302584,0.321878,61130.0,61129.0,0.081879]
[1728543302978,0.326878,61130.0,61129.0,0.081879]
[1728543303186,0.331878,61130.0,61129.0,0.081879]
[1728543307402,0.331878,61130.0,61126.0,0.06762637]
[1728543307599,0.201882,61127.0,61126.0,0.14950937]
[1728543307799,0.301882,61127.0,61126.0,0.14950937]
[1728543309205,0.301882,61127.0,61126.0,0.08433653]
[1728543309506,0.303882,61127.0,61126.0,0.08433653]
[1728543309996,0.305882,61127.0,61126.0,0.08433653]
[1728543311395,0.305882,61127.0,61126.0,0.00245353]
[1728543315699,0.305882,61127.0,61126.0,0.05125242]
[1728543316413,0.081885,61125.0,61124.0,0.081886]
[1728543316600,0.181885,61125.0,61124.0,0.081886]
[1728543317809,0.081889,61122.0,61121.0,0.04880369]
[1728543318010,0.201889,61122.0,61121.0,0.04880369]
[1728543318406,0.08189,61121.0,61120.0,0.13069469]
[1728543318604,0.19189,61121.0,61120.0,0.081891]
[1728543320010,0.19189,61121.0,61120.0,0.085891]
[1728543320604,0.19189,61121.0,61120.0,0.13469817]
[1728543320908,0.19189,61121.0,61120.0,0.13969817]
[1728543321412,0.19189,61121.0,61120.0,0.090891]
[1728543322103,0.19189,61121.0,61120.0,0.009]
[1728543325105,0.31189,61121.0,61120.0,0.009]
[1728543328910,0.19189,61121.0,61120.0,0.009]
[1728543329220,0.31189,61121.0,61120.0,0.009]
[1728543331422,0.31189,61121.0,61120.0,0.006]
[1728543331720,0.31189,61121.0,61120.0,0.003]
[1728543332718,0.31189,61121.0,61120.0,0.05189899]
[1728543332925,0.081892,61120.0,61119.0,0.04890078]
[1728543333222,0.081896,61117.0,61116.0,0.06517284]
[1728543333526,0.321896,61117.0,61116.0,0.06517284]
[1728543334117,0.321896,61117.0,61113.0,0.08149258]
[1728543334118,0.081901,61114.0,61113.0,0.08149258]
[1728543334320,0.081901,61114.0,61112.0,0.443702]
[1728543334321,0.081901,61113.0,61112.0,0.52519458]
[1728543334508,0.191901,61113.0,61112.0,0.61341721]
[1728543336215,0.311901,61113.0,61112.0,0.61341721]
[1728543336615,0.312901,61113.0,61112.0,0.62741721]
[1728543337018,0.313901,61113.0,61112.0,0.64141721]
[1728543337716,0.193901,61113.0,61112.0,0.64141721]
[1728543338723,0.193901,61113.0,61112.0,0.55952633]
[1728543339024,0.193901,61113.0,61112.0,0.64150332]
[1728543339227,0.193901,61113.0,61112.0,0.6414965]
[1728543340425,0.193901,61113.0,61112.0,0.64154932]
[1728543341314,0.193901,61113.0,61112.0,0.64152923]
[1728543343223,0.193901,61113.0,61112.0,0.3888]
[1728543343419,0.193901,61113.0,61112.0,0.4703037]
[1728543345223,0.193901,61113.0,61112.0,0.55962424]
[1728543346328,0.193901,61113.0,61112.0,0.11732054]
[1728543348628,0.193901,61113.0,61112.0,0.51922254]
[1728543352131,0.193901,61113.0,61112.0,0.5192552]
[1728543356323,0.193901,61113.0,61112.0,0.61697372]
[1728543357932,0.193901,61113.0,61112.0,0.5192552]
[1728543358443,0.193901,61113.0,61112.0,0.61697372]
[1728543360025,0.0076,61129.0,61112.0,0.93495829]
[1728543360026,0.0038,61128.0,61112.0,0.93495829]
[1728543360228,0.0024544,61134.0,61112.0,0.93495829]
[1728543360229,0.0038,61134.0,61133.0,0.081874]
[1728543360539,0.1,61134.0,61133.0,0.74988285]
[1728543360730,0.1,61134.0,61133.0,1.0701875]
[1728543360926,0.1,61134.0,61133.0,0.9501875]
[1728543361123,0.1,61134.0,61133.0,0.85233185]
[1728543361328,0.1,61134.0,61133.0,0.93371487]
[1728543361529,0.1,61134.0,61133.0,0.85233185]
[1728543361838,0.109,61134.0,61133.0,0.93471661]
[1728543362038,0.109,61134.0,61133.0,0.85333185]
[1728543362336,0.109,61134.0,61133.0,1.03960897]
[1728543362534,0.118,61134.0,61133.0,1.04060897]
[1728543362733,0.018,61134.0,61133.0,1.04060897]
[1728543362930,0.018,61134.0,61133.0,1.138265]
[1728543363238,0.018,61134.0,61133.0,0.9740558]
[1728543363444,0.018,61134.0,61133.0,1.01500715]
[1728543363738,0.018,61134.0,61133.0,1.04060174]
[1728543364327,0.018,61134.0,61133.0,1.12179707]
[1728543364526,0.018,61134.0,61133.0,1.04060174]
[1728543365337,0.018,61134.0,61133.0,0.95121994]
[1728543365540,0.018,61134.0,61133.0,1.12148838]
[1728543365841,0.02027642,61143.0,61133.0,1.04026095]
[1728543366032,0.1,61143.0,61142.0,0.081862]
[1728543366534,0.0317,61149.0,61148.0,0.081854]
[1728543366737,0.1417,61149.0,61148.0,0.562654]
[1728543366941,0.1417,61149.0,61148.0,0.442654]
[1728543367532,0.1417,61149.0,61148.0,0.443654]
[1728543368030,0.2617,61149.0,61148.0,0.082854]
[1728543368236,0.2617,61149.0,61148.0,0.443654]
[1728543368832,0.281206,61149.0,61148.0,0.443654]
[1728543369838,0.281206,61149.0,61148.0,0.442654]
[1728543376250,0.363059,61149.0,61148.0,0.081854]
[1728543376551,0.363059,61149.0,61144.0,0.081859]
[1728543376552,0.081855,61148.0,61144.0,0.081859]
[1728543376847,0.12,61145.0,61144.0,0.081859]
[1728543377154,0.12,61145.0,61141.0,0.3608]
[1728543377155,0.081861,61143.0,61141.0,0.3608]
[1728543377341,0.12,61142.0,61141.0,0.442664]
[1728543377536,0.24,61142.0,61141.0,0.442664]
[1728543378753,0.24,61142.0,61141.0,0.446664]
[1728543384153,0.321862,61142.0,61141.0,0.004]
[1728543385054,0.34172032,61142.0,61141.0,0.3648]
[1728543385251,0.34172032,61142.0,61141.0,0.004]
[1728543385958,0.34172032,61142.0,61141.0,0.085864]
[1728543386954,0.34172032,61142.0,61141.0,0.446664]
[1728543388361,0.34172032,61142.0,61141.0,0.51159191]
[1728543388755,0.12,61142.0,61141.0,0.51159191]
[1728543389059,0.12,61142.0,61141.0,0.446664]
[1728543389259,0.12,61142.0,61141.0,0.65918392]
[1728543390354,0.12,61142.0,61141.0,0.97918392]
[1728543391464,0.12,61142.0,61141.0,0.96298431]
[1728543392061,0.12,61142.0,61141.0,0.96296681]
[1728543392258,0.12,61142.0,61141.0,0.88151039]
[1728543393450,0.00350891,61142.0,61141.0,2.01313847]
[1728543393765,0.0302,61156.0,61152.0,0.081849]
[1728543393957,0.11,61153.0,61152.0,0.562649]
[1728543394360,0.11,61153.0,61152.0,0.62781257]
[1728543394661,0.11,61153.0,61152.0,0.562649]
[1728543394858,0.11,61153.0,61152.0,0.563649]
[1728543395261,0.11,61153.0,61152.0,0.564649]
[1728543398155,0.11,61153.0,61152.0,0.59023749]
[1728543398365,0.11,61153.0,61152.0,1.6807974]
[1728543398661,0.00199029,61161.0,61160.0,0.081838]
[1728543398861,0.00199029,61161.0,61160.0,0.442638]
[1728543399370,0.00199029,61161.0,61160.0,0.50767936]
[1728543399756,0.00096001,61173.0,61171.0,0.081823]
[1728543400059,0.3265,61187.0,61172.0,0.081822]
[1728543400060,0.0038,61186.0,61172.0,0.081822]
[1728543400375,0.23,61186.0,61184.0,0.3608]
[1728543400558,0.081811,61180.0,61179.0,0.3722]
[1728543400760,0.11,61180.0,61179.0,0.4808]
[1728543400959,0.191811,61180.0,61179.0,0.4808]
[1728543401670,0.191811,61180.0,61179.0,0.4818]
[1728543402164,0.0333,61185.0,61179.0,0.564613]
[1728543402366,0.0333,61185.0,61180.0,0.081811]
[1728543402367,0.08181,61181.0,61180.0,0.081811]
[1728543402567,0.08181,61181.0,61179.0,0.3628]
[1728543402568,0.081811,61180.0,61179.0,0.3628]
[1728543402763,0.181811,61180.0,61179.0,0.3628]
[1728543404065,0.181811,61180.0,61179.0,0.002]
[1728543404973,0.181811,61180.0,61179.0,0.001]
[1728543405267,0.181811,61180.0,61179.0,0.002]
[1728543406161,0.214711,61180.0,61179.0,0.002]
[1728543410064,0.23407885,61180.0,61179.0,0.002]
[1728543412575,0.15226785,61180.0,61179.0,0.083813]
[1728543418176,0.23407885,61180.0,61179.0,0.083813]
[1728543418974,0.15226785,61180.0,61179.0,0.083813]
[1728543421483,0.11936785,61180.0,61179.0,0.083813]
[1728543422180,0.11936785,61180.0,61179.0,0.403813]
[1728543422397,0.11936785,61180.0,61179.0,0.523813]
[1728543423183,0.11936785,61180.0,61179.0,0.083813]
[1728543423484,0.11936785,61180.0,61179.0,0.203813]
[1728543424276,0.11936785,61180.0,61179.0,0.22938989]
[1728543424477,0.11936785,61180.0,61179.0,0.203813]
[1728543426878,0.1,61180.0,61179.0,0.26854071]
[1728543427389,0.1,61180.0,61179.0,0.203813]
[1728543428281,0.1,61180.0,61179.0,0.28510074]
[1728543428879,0.1,61180.0,61179.0,0.203813]
[1728543429391,0.1,61180.0,61179.0,0.37302708]
[1728543429981,0.1,61180.0,61179.0,0.28510074]
[1728543430180,0.1,61180.0,61179.0,0.203813]
[1728543432089,0.22,61180.0,61179.0,0.002]
[1728543432279,0.22,61180.0,61179.0,0.083813]
[1728543432880,0.1,61180.0,61179.0,0.083813]
[1728543433184,0.1,61180.0,61179.0,0.31067806]
[1728543433382,0.1,61180.0,61179.0,0.22939034]
[1728543433583,0.1,61180.0,61179.0,0.31067805]
[1728543434087,0.1,61180.0,61179.0,0.203813]
[1728543435385,0.1,61180.0,61179.0,0.083813]
[1728543435583,0.133,61180.0,61179.0,0.083813]
[1728543436279,0.214811,61180.0,61179.0,0.083813]
[1728543436880,0.214811,61180.0,61179.0,0.033913]
[1728543437183,0.214811,61180.0,61179.0,0.0650429]
[1728543437786,0.214811,61180.0,61179.0,0.0660429]
[1728543438383,0.214811,61180.0,61179.0,0.06605876]
[1728543438692,0.214811,61180.0,61179.0,0.06705876]
[1728543438896,0.214811,61180.0,61179.0,0.002]
[1728543439581,0.214811,61180.0,61179.0,0.18706931]
[1728543439582,0.133,61180.0,61179.0,0.18706931]
[1728543439778,0.133,61180.0,61179.0,0.28510074]
[1728543440393,0.133,61180.0,61179.0,0.29188456]
[1728543440987,0.133,61180.0,61179.0,0.25320743]
[1728543440988,0.214811,61180.0,61179.0,0.25320743]
[1728543441183,0.214811,61180.0,61179.0,0.083813]
[1728543441379,0.214811,61180.0,61179.0,0.16513587]
[1728543441592,0.214811,61180.0,61179.0,0.083813]
[1728543442185,0.214811,61180.0,61179.0,0.16513587]
[1728543442589,0.214811,61180.0,61179.0,0.083813]
[1728543442990,0.133,61180.0,61179.0,0.083813]
[1728543444391,0.133,61180.0,61179.0,0.16513587]
[1728543444596,0.214811,61180.0,61179.0,0.17201574]
[1728543444989,0.30627591,61787.0,61179.0,0.17201574]
[1728543445190,0.081797,61191.0,61190.0,0.05594487]
[1728543445387,0.231797,61191.0,61190.0,0.05594487]
[1728543445698,1.322077,61191.0,61190.0,0.05594487]
[1728543447496,1.322077,61191.0,61190.0,0.05694487]
[1728543448501,1.322077,61191.0,61190.0,0.05894487]
[1728543451589,0.081803,61186.0,61185.0,0.3722]
[1728543451787,0.081803,61186.0,61185.0,0.3608]
[1728543451788,0.321803,61186.0,61185.0,0.3608]
[1728543452004,1.412123,61186.0,61185.0,0.3608]
[1728543452700,1.412123,61186.0,61182.0,0.0114]
[1728543453005,0.201807,61183.0,61182.0,0.3608]
[1728543453197,0.321807,61183.0,61182.0,0.3608]
[1728543454395,0.321807,61183.0,61182.0,0.3618]
[1728543455095,0.321807,61183.0,61182.0,0.3628]
[1728543455295,0.321807,61183.0,61182.0,0.3618]
[1728543455603,0.321807,61183.0,61182.0,0.3628]
[1728543457597,0.34164947,61183.0,61182.0,0.3628]
[1728543459001,0.34164947,61183.0,61182.0,0.4278948]
[1728543463300,0.34164947,61183.0,61182.0,0.3628]
[1728543464410,0.34164947,61183.0,61182.0,0.42791123]
[1728543466111,0.34164947,61183.0,61182.0,0.3628]
[1728543466911,0.34164947,61183.0,61182.0,0.42791123]
[1728543467107,0.34164947,61183.0,61182.0,0.3628]
[1728543467317,0.34164947,61183.0,61182.0,0.42792442]
[1728543467508,0.34164947,61183.0,61182.0,0.3628]
[1728543467713,0.34164947,61183.0,61182.0,0.42792442]
[1728543468110,0.34164947,61183.0,61182.0,0.3628]
[1728543468310,0.34164947,61183.0,61182.0,0.42792564]
[1728543468512,0.34164947,61183.0,61182.0,0.3628]
[1728543469113,0.34164947,61183.0,61182.0,0.42792597]
[1728543469413,0.34164947,61183.0,61182.0,0.42792591]
[1728543470307,0.34164947,61183.0,61182.0,0.3628]
[1728543477925,0.34164947,61183.0,61182.0,0.002]
[1728543478717,0.34164947,61183.0,61182.0,0.3628]
[1728543479820,0.34164947,61183.0,61182.0,0.04888514]
[1728543480025,0.081813,61179.0,61178.0,0.0114]
[1728543480220,0.081817,61176.0,61174.0,0.07657011]
[1728543480425,0.081819,61174.0,61173.0,0.06517011]
[1728543480628,0.201819,61174.0,61173.0,0.06517011]
[1728543481132,0.201819,61174.0,61168.0,0.0114]
[1728543481133,0.12,61174.0,61171.0,0.06514197]
[1728543481319,0.12,61172.0,61170.0,0.06514197]
[1728543481518,0.081823,61171.0,61170.0,0.06514197]
[1728543481831,0.201823,61171.0,61170.0,0.06514197]
[1728543482229,0.081825,61170.0,61169.0,0.42594197]
[1728543482421,0.191825,61170.0,61169.0,0.3608]
[1728543483633,0.191825,61170.0,61169.0,0.442626]
[1728543484524,0.191825,61170.0,61169.0,0.3608]
[1728543484825,0.191825,61170.0,61169.0,0.3618]
[1728543485433,0.191825,61170.0,61169.0,0.3628]
[1728543486928,0.2162771,61170.0,61169.0,0.3628]
[1728543488333,0.2162771,61170.0,61169.0,0.002]
[1728543489039,0.08183,61166.0,61165.0,0.0114]
[1728543489235,0.31183,61166.0,61165.0,0.0065796]
[1728543489934,0.31183,61166.0,61163.0,0.3608]
[1728543490137,0.081833,61164.0,61163.0,0.3608]
[1728543490334,0.191833,61164.0,61163.0,0.3608]
[1728543491537,0.11,61164.0,61163.0,0.442634]
[1728543492036,0.11,61164.0,61163.0,0.536734]
[1728543496236,0.11,61164.0,61163.0,0.77262722]
[1728543496440,0.11,61164.0,61163.0,0.69125872]
[1728543496844,0.11,61164.0,61163.0,0.69125594]
[1728543499343,0.11,61164.0,61163.0,0.69121097]
[1728543500548,0.11,61164.0,61163.0,1.05201086]
[1728543503745,0.11,61164.0,61163.0,1.05201156]
[1728543503944,0.11,61164.0,61163.0,1.05206778]
[1728543504143,0.11,61164.0,61163.0,0.98555328]
[1728543504340,0.11,61164.0,61163.0,1.01113578]
[1728543504539,0.11,61164.0,61163.0,1.05206779]
[1728543504949,0.11,61164.0,61163.0,0.96404851]
[1728543505845,0.11,61164.0,61163.0,0.8290165]
[1728543506043,0.11,61164.0,61163.0,0.803434]
[1728543506546,0.23,61164.0,61163.0,0.803434]
[1728543507648,0.11,61164.0,61163.0,0.803434]
[1728543509148,0.11,61164.0,61163.0,0.442634]
[1728543509353,0.11,61164.0,61163.0,0.61234573]
[1728543510651,0.11,61164.0,61163.0,0.71753094]
[1728543512938,0.11,61164.0,61163.0,0.8151111]
[1728543517643,0.11,61164.0,61163.0,0.74859215]
[1728543518048,0.11,61164.0,61163.0,0.77417586]
[1728543518347,0.11,61164.0,61163.0,0.4543098]
[1728543518556,0.11,61164.0,61163.0,1.1759098]
[1728543518751,0.11,61164.0,61163.0,1.0559098]
[1728543518952,0.11,61164.0,61163.0,0.95824773]
[1728543519746,0.11,61164.0,61163.0,0.89173008]
[1728543523055,0.11,61164.0,61163.0,1.01173008]
[1728543523650,0.11,61164.0,61163.0,1.01185326]
[1728543524251,0.11,61164.0,61163.0,0.29025326]
[1728543524562,0.11,61164.0,61163.0,1.01185326]
[1728543525858,0.11,61164.0,61163.0,0.89185326]
[1728543529750,0.11,61164.0,61163.0,0.98958458]
[1728543531761,0.11,61164.0,61163.0,0.26798458]
[1728543532061,0.11,61164.0,61163.0,0.98958458]
[1728543533161,0.11,61164.0,61163.0,0.803434]
[1728543533360,0.11,61164.0,61163.0,0.98970152]
[1728543534260,0.11,61164.0,61163.0,0.89193806]
[1728543534863,0.11,61164.0,61163.0,0.9974231]
[1728543535254,0.11,61164.0,61163.0,0.89193806]
[1728543536156,0.11,61164.0,61163.0,0.17033806]
[1728543536356,0.11,61164.0,61163.0,0.99741946]
[1728543536562,0.11,61164.0,61163.0,1.06393685]
[1728543538062,0.11,61164.0,61163.0,0.86995139]
[1728543538254,0.11,61164.0,61163.0,1.06373536]
[1728543541063,0.11,61164.0,61163.0,0.99721797]
[1728543541565,0.11,61164.0,61163.0,1.06373586]
[1728543543367,0.07315932,61164.0,61163.0,1.06373586]
[1728543546183,0.07315932,61164.0,61163.0,1.06393595]
[1728543547257,0.0633,61168.0,61167.0,0.081829]
[1728543547465,0.1733,61168.0,61167.0,0.17032692]
[1728543548766,0.1733,61168.0,61167.0,0.89192692]
[1728543551069,0.1733,61168.0,61167.0,0.89180446]
[1728543552765,0.1733,61168.0,61167.0,0.98949736]
[1728543552967,0.1733,61168.0,61167.0,0.89180446]
[1728543557875,0.255127,61168.0,61167.0,0.89180446]
[1728543562474,0.1733,61168.0,61167.0,1.01180446]
[1728543563073,0.1733,61168.0,61167.0,1.10949736]
[1728543564069,0.1733,61168.0,61167.0,0.89180446]
[1728543565174,0.1733,61168.0,61167.0,0.89183983]
[1728543565574,0.0114,61175.0,61174.0,0.081819]
[1728543565775,0.1,61175.0,61174.0,0.65102983]
[1728543566186,0.1,61175.0,61174.0,0.97102983]
[1728543566378,0.12425613,61175.0,61174.0,0.97102983]
[1728543566678,0.12425613,61175.0,61174.0,0.883619]
[1728543566875,0.12425613,61175.0,61174.0,0.763619]
[1728543567073,0.12425613,61175.0,61174.0,0.764619]
[1728543568482,0.24425613,61175.0,61174.0,0.764619]
[1728543568678,0.32607413,61175.0,61174.0,0.764619]
[1728543569582,0.32607413,61175.0,61174.0,0.444619]
[1728543574685,0.32607413,61175.0,61174.0,0.50967476]
[1728543576684,0.12425613,61175.0,61174.0,0.444619]
[1728543577394,0.12425613,61175.0,61174.0,0.52595023]
[1728543577580,0.12425613,61175.0,61174.0,0.53272075]
[1728543583982,0.12425613,61175.0,61174.0,0.53272018]
[1728543584383,0.12425613,61175.0,61174.0,0.61399903]
[1728543589184,0.12425613,61175.0,61174.0,0.61402037]
[1728543589395,0.12425613,61175.0,61174.0,0.53272018]
[1728543589984,0.12425613,61175.0,61174.0,0.61402939]
[1728543590197,0.12425613,61175.0,61174.0,0.53272018]
[1728543593589,0.12425613,61175.0,61174.0,0.53281613]
[1728543593997,0.12425613,61175.0,61174.0,0.89361613]
[1728543596305,0.20607413,61175.0,61174.0,0.89361613]
[1728543598194,0.20607413,61175.0,61174.0,0.97500009]
[1728543598606,0.20607413,61175.0,61174.0,0.805419]
[1728543600509,0.20607413,61175.0,61174.0,0.7236]
[1728543600807,0.23707413,61175.0,61174.0,0.78872211]
[1728543601505,0.23707413,61175.0,61174.0,0.805419]
[1728543602396,0.12425613,61175.0,61174.0,0.805419]
[1728543604697,0.20607413,61175.0,61174.0,0.805419]
[1728543605199,0.32607413,61175.0,61174.0,0.805419]
[1728543607801,0.32607413,61175.0,61174.0,0.7236]
[1728543608907,0.32607413,61175.0,61174.0,0.78873717]
[1728543609307,1.41647413,61175.0,61174.0,0.41165331]
[1728543609514,1.41647413,61175.0,61174.0,0.3628]
[1728543609909,1.41647413,61175.0,61174.0,0.002]
[1728543610212,0.32607413,61175.0,61174.0,0.002]
[1728543610713,0.32607413,61175.0,61174.0,0.083819]
[1728543610714,0.20607413,61175.0,61174.0,0.083819]
[1728543612406,0.20607413,61175.0,61174.0,0.14894011]
[1728543612706,0.20607413,61175.0,61174.0,0.444619]
[1728543615108,0.20607413,61175.0,61174.0,0.42792386]
[1728543615314,0.20607413,61175.0,61174.0,0.3628]
[1728543617013,0.20607413,61175.0,61174.0,0.002]
[1728543618518,0.20607413,61175.0,61174.0,0.06712386]
[1728543618814,0.20607413,61175.0,61174.0,0.002]
[1728543620313,0.20607413,61175.0,61174.0,0.06712386]
[1728543621120,0.32607413,61175.0,61174.0,0.002]
[1728543623604,1.41647413,61175.0,61174.0,0.002]
[1728543624619,1.41647413,61175.0,61174.0,0.05086107]
[1728543625510,1.41647413,61175.0,61174.0,0.002]
[1728543625712,0.81647413,61175.0,61174.0,0.002]
[1728543627119,0.81647413,61175.0,61174.0,0.0508689]
[1728543629305,0.81647413,61175.0,61174.0,0.002]
[1728543629918,0.12,61171.0,61169.0,0.0488689]
[1728543630114,0.081826,61169.0,61168.0,0.0488689]
[1728543630309,0.081826,61169.0,61166.0,0.3608]
[1728543630310,0.321826,61169.0,61167.0,0.0488689]
[1728543630513,0.081827,61168.0,61167.0,0.0488689]
[1728543630713,0.181827,61168.0,61167.0,0.0488689]
[1728543631510,0.181827,61168.0,61166.0,0.3608]
[1728543631721,0.081829,61167.0,61166.0,0.42592386]
[1728543632014,0.191829,61167.0,61166.0,0.42592386]
[1728543633021,0.191829,61167.0,61166.0,0.3608]
[1728543634116,0.21590917,61167.0,61166.0,0.3608]
[1728543634719,0.33590917,61167.0,61166.0,0.3608]
[1728543636411,0.33590917,61167.0,61166.0,0.40963701]
[1728543637025,0.33590917,61167.0,61166.0,0.40963652]
[1728543637722,0.33590917,61167.0,61166.0,0.3608]
[1728543637927,0.21590917,61167.0,61166.0,0.3608]
[1728543638129,0.33590917,61167.0,61166.0,0.3608]
[1728543639117,0.21590917,61167.0,61166.0,0.3608]
[1728543639320,0.33590917,61167.0,61166.0,0.3608]
[1728543640329,0.25408017,61167.0,61166.0,0.3608]
[1728543640630,0.25408017,61167.0,61166.0,0.40962933]
[1728543640631,0.33590917,61167.0,61166.0,0.40962933]
[1728543641335,0.33590917,61167.0,61166.0,0.3608]
[1728543642633,0.13408017,61167.0,61166.0,0.44263]
[1728543642823,0.25408017,61167.0,61166.0,0.44263]
[1728543645231,0.25408017,61167.0,61166.0,0.50775386]
[1728543645434,0.25408017,61167.0,61166.0,0.50775534]
[1728543648433,0.25408017,61167.0,61166.0,0.44263]
[1728543648625,0.33590917,61167.0,61166.0,0.44263]
[1728543651935,0.33590917,61167.0,61166.0,0.3608]
[1728543680320,0.6519861,61167.0,61166.0,0.3608]
[1728544391262,0.0114,61170.0,61166.0,0.3608]
[1728544391552,0.0714,61170.0,61169.0,0.562618]
[1728544391749,0.0114,61174.0,61173.0,0.081813]
[1728544391956,0.12,61174.0,61173.0,0.201813]
[1728544392551,0.22651518,61174.0,61173.0,0.201813]
[1728544393457,0.22651518,61174.0,61173.0,0.202813]
[1728544394545,0.22651518,61174.0,61173.0,0.203813]
[1728544395144,0.22651518,61174.0,61173.0,0.37250481]
[1728544396162,0.22651518,61174.0,61173.0,0.37243382]
[1728544397457,0.22651518,61174.0,61173.0,0.28533693]
[1728544398457,0.22651518,61174.0,61173.0,0.203813]
[1728544405464,0.22651518,61174.0,61173.0,0.28533693]
[1728544407365,0.22651518,61174.0,61173.0,0.3724261]
[1728544408760,0.22651518,61174.0,61173.0,0.2524261]
[1728544409070,0.22651518,61174.0,61173.0,0.083813]
[1728544409961,0.22651518,61174.0,61173.0,0.444613]
[1728544411670,0.22651518,61174.0,61173.0,0.3628]
[1728544413073,0.22651518,61174.0,61173.0,0.42802428]
[1728544413471,0.22651518,61174.0,61173.0,0.3628]
[1728544414362,0.22651518,61174.0,61173.0,0.05091993]
[1728544414567,0.22651518,61174.0,61173.0,0.002]
[1728544414878,0.22651518,61174.0,61173.0,0.05091993]
[1728544418370,0.22651518,61174.0,61173.0,0.002]
[1728544419974,0.22651518,61174.0,61173.0,0.05091742]
[1728544420569,0.22651518,61174.0,61173.0,0.002]
[1728544435577,0.22651518,61174.0,61173.0,0.05093221]
[1728544436177,0.22651518,61174.0,61173.0,0.002]
[1728544436774,0.22651518,61174.0,61173.0,0.05093551]
[1728544437482,0.22651518,61174.0,61173.0,0.002]
[1728544444286,0.22651518,61174.0,61173.0,0.083813]
[1728544446484,0.22651518,61174.0,61173.0,0.25252951]
[1728544446677,0.22651518,61174.0,61173.0,0.17100558]
[1728544446883,0.22651518,61174.0,61173.0,0.25258269]
[1728544447084,0.22651518,61174.0,61173.0,0.17100558]
[1728544447680,0.22651518,61174.0,61173.0,0.16538642]
[1728544448285,0.22651518,61174.0,61173.0,0.083813]
[1728544459488,0.34651518,61174.0,61173.0,0.083813]
[1728544460290,0.34651518,61174.0,61173.0,0.16538642]
[1728544461699,0.34651518,61174.0,61173.0,0.25260545]
[1728544462086,0.34651518,61174.0,61173.0,0.25259419]
[1728544463788,0.34651518,61174.0,61173.0,0.16538642]
[1728544463983,0.34651518,61174.0,61173.0,0.25260679]
[1728544467997,0.34651518,61174.0,61173.0,0.57260679]
[1728544468389,0.26470418,61174.0,61173.0,0.57260679]
[1728544468788,0.26470418,61174.0,61173.0,0.48538642]
[1728544470599,0.26470418,61174.0,61173.0,0.083813]
[1728544470786,0.26470418,61174.0,61173.0,0.16538642]
[1728544473800,0.26470418,61174.0,61173.0,0.083813]
[1728544475594,0.26470418,61174.0,61173.0,0.1491012]
[1728544480707,0.34651518,61174.0,61173.0,0.083813]
[1728544482208,0.34651518,61174.0,61173.0,0.16538642]
[1728544483603,0.34651518,61174.0,61173.0,0.25258596]
[1728544484207,0.34651518,61174.0,61173.0,0.25258341]
[1728544486014,0.34651518,61174.0,61173.0,0.16538642]
[1728544486315,0.34651518,61174.0,61173.0,0.25259693]
[1728544487510,0.34651518,61174.0,61173.0,0.17078393]
[1728544488715,0.34651518,61174.0,61173.0,0.002]
[1728544496621,0.34651518,61174.0,61173.0,0.08357342]
[1728544499106,0.34651518,61174.0,61173.0,0.002]
[1728544499315,0.34651518,61174.0,61173.0,0.08357342]
[1728544501824,0.14470418,61174.0,61173.0,0.16538642]
[1728544502817,0.14470418,61174.0,61173.0,0.083813]
[1728544505317,0.14470418,61174.0,61173.0,0.14911364]
[1728544506819,0.14470418,61174.0,61173.0,0.083813]
[1728544507609,0.14470418,61174.0,61173.0,0.14911364]
[1728544507814,0.14470418,61174.0,61173.0,0.083813]
[1728544510915,0.14470418,61174.0,61173.0,0.25261021]
[1728544512129,0.14470418,61174.0,61173.0,0.17103679]
[1728544512618,0.14470418,61174.0,61173.0,0.25269168]
[1728544513514,0.14470418,61174.0,61173.0,0.25269376]
[1728544513722,0.14470418,61174.0,61173.0,0.17103679]
[1728544513917,0.14470418,61174.0,61173.0,0.29103679]
[1728544514215,0.14470418,61174.0,61173.0,0.31661612]
[1728544514423,0.14470418,61174.0,61173.0,0.50794433]
[1728544514621,0.14470418,61174.0,61173.0,0.82794433]
[1728544514821,0.14470418,61174.0,61173.0,0.73001612]
[1728544515026,0.14470418,61174.0,61173.0,0.41001612]
[1728544515324,0.14470418,61174.0,61173.0,0.5126314]
[1728544515623,0.14470418,61174.0,61173.0,0.8316314]
[1728544515815,0.14470418,61174.0,61173.0,0.72801612]
[1728544517427,0.14470418,61174.0,61173.0,0.8258556]
[1728544517628,0.14470418,61174.0,61173.0,0.72801612]
[1728544517921,0.14470418,61174.0,61173.0,0.82542508]